bitfinex-derivatives/quotes_ETHF0:USTF0_20250824
["timestamp","ask_amount","ask_price","bid_price","bid_amount"]
[1756004002223,19.206,4787.1,4787.0,0.5496]
[1756004002422,19.206,4787.1,4787.0,1.3525]
[1756004002423,0.2307,4787.1,4787.0,1.3525]
[1756004002824,1.1023,4787.1,4787.0,1.3525]
[1756004003224,1.3202,4787.1,4787.0,0.3847]
[1756004003623,1.3202,4786.5,4786.4,0.3847]
[1756004004024,1.1023,4786.5,4786.4,1.0039]
[1756004004225,1.1023,4786.5,4786.4,1.3525]
[1756004004625,0.8773,4786.5,4786.4,1.3525]
[1756004004821,0.2307,4786.5,4786.4,1.3525]
[1756004006718,0.225,4787.3,4787.1,0.157]
[1756004006923,23.2094,4787.2,4787.1,1.3525]
[1756004007125,23.5141,4787.2,4787.1,1.3525]
[1756004007320,23.5131,4787.2,4787.1,1.3525]
[1756004007521,23.731,4787.2,4787.1,1.0039]
[1756004009131,1.1023,4786.5,4786.4,1.3525]
[1756004009329,20.3043,4786.5,4786.4,1.3525]
[1756004009827,19.202,4786.6,4786.5,0.96757]
[1756004010130,19.7746,4786.6,4786.5,1.77047]
[1756004010330,20.0793,4786.6,4786.5,1.77047]
[1756004010527,20.3043,4786.6,4786.5,1.77047]
[1756004011232,20.3043,4786.6,4786.5,1.3525]
[1756004012337,19.7374,4786.6,4786.5,1.3525]
[1756004012632,19.5905,4786.6,4786.5,1.3525]
[1756004013030,20.3043,4786.6,4786.5,0.2277]
[1756004013223,0.5354,4786.3,4786.2,0.2277]
[1756004013423,20.5202,4786.3,4786.2,0.2277]
[1756004014032,0.3734,4786.1,4785.9,0.3486]
[1756004014237,1.318,4785.8,4785.7,0.2242]
[1756004014437,1.318,4785.8,4785.7,0.5334]
[1756004014638,1.318,4785.8,4785.7,0.7677]
[1756004014837,1.318,4785.8,4785.7,1.0079]
[1756004015336,1.318,4785.8,4785.7,1.3389]
[1756004016142,1.1009,4785.8,4785.7,1.3389]
[1756004017044,1.51893,4785.8,4785.7,1.3389]
[1756004017349,1.1009,4785.8,4785.7,1.3389]
[1756004020245,20.517,4785.8,4785.7,0.2242]
[1756004020442,20.517,4785.8,4785.4,3.2078]
[1756004020443,1.73605,4785.5,4785.4,3.5883]
[1756004020644,0.41809,4785.1,4785.0,0.4585]
[1756004020947,1.73609,4785.1,4785.0,0.3805]
[1756004021149,0.41811,4784.9,4784.8,3.2078]
[1756004021348,20.93511,4784.9,4784.8,3.2078]
[1756004021542,20.93511,4784.9,4784.2,4.50636]
[1756004021543,0.8767,4784.3,4784.2,4.50636]
[1756004021745,1.1009,4784.3,4784.2,1.31082859]
[1756004021948,1.1009,4784.3,4784.2,1.53502859]
[1756004022352,20.93416,4784.3,4783.8,0.5653]
[1756004022548,0.5234,4784.0,4783.9,0.979843]
[1756004022747,1.318,4784.0,4783.9,0.576643]
[1756004023049,1.318,4784.0,4783.9,0.3805]
[1756004023245,1.318,4784.0,4783.9,0.2242]
[1756004023440,0.5234,4783.9,4783.8,0.5494]
[1756004023645,1.1009,4783.9,4783.8,1.3389]
[1756004024747,1.51901,4784.9,4784.8,1.0079]
[1756004025051,20.71701,4784.9,4784.8,1.3389]
[1756004025242,20.93411,4784.9,4784.8,0.5334]
[1756004025449,0.5234,4784.5,4784.4,0.8804]
[1756004025646,1.1009,4784.5,4784.4,1.1147]
[1756004025951,1.1009,4784.5,4784.4,1.3389]
[1756004026747,1.318,4784.5,4784.4,1.0079]
[1756004026942,1.318,4784.5,4784.4,0.7736]
[1756004027556,1.318,4784.5,4784.4,1.3389]
[1756004027847,1.1009,4784.5,4784.4,1.3389]
[1756004029051,1.1009,4784.5,4784.4,1.75705]
[1756004029449,1.1009,4784.5,4784.4,1.3389]
[1756004032055,0.8767,4784.5,4784.4,1.3389]
[1756004032951,1.1009,4784.5,4784.4,1.3389]
[1756004033148,1.1009,4784.5,4784.2,3.2078]
[1756004033149,0.15,4784.3,4784.2,3.2078]
[1756004033457,1.318,4784.3,4784.2,3.2078]
[1756004033858,1.318,4784.3,4784.2,3.432]
[1756004034359,1.318,4784.3,4784.2,3.9814]
[1756004034859,1.318,4784.3,4784.2,3.2078]
[1756004035852,20.521,4784.3,4784.2,3.2078]
[1756004036260,20.521,4784.3,4784.2,3.5883]
[1756004036856,20.521,4784.3,4784.2,3.432]
[1756004037157,20.521,4784.3,4784.2,3.2078]
[1756004037547,20.521,4784.3,4784.2,4.96487]
[1756004037548,20.3039,4784.3,4784.2,4.96487]
[1756004037758,20.3039,4784.3,4784.2,4.5467]
[1756004038660,20.521,4784.3,4784.2,4.5467]
[1756004039855,20.3039,4784.3,4784.2,4.5467]
[1756004040749,20.521,4784.3,4784.2,4.5467]
[1756004041558,20.3039,4784.3,4784.2,4.5467]
[1756004041852,20.521,4784.3,4784.2,3.5883]
[1756004042056,20.521,4784.3,4784.2,3.432]
[1756004042759,20.3039,4784.3,4784.2,4.5467]
[1756004044463,0.5234,4784.3,4784.2,4.5467]
[1756004044767,1.51626,4784.3,4784.2,4.5467]
[1756004045467,1.0981,4784.3,4784.2,4.5467]
[1756004048357,1.0981,4784.3,4784.2,4.74284773]
[1756004051258,1.3326,4784.3,4784.2,3.62814773]
[1756004051567,5.83975632,4784.3,4784.2,0.19614773]
[1756004051764,6.72827632,4784.3,4783.6,0.229]
[1756004052064,1.75493,4783.5,4783.4,0.229]
[1756004052265,20.95693,4783.5,4783.4,0.42517729]
[1756004053062,20.95693,4783.5,4783.4,0.19617729]
[1756004053260,25.46386767,4783.5,4783.4,0.19617729]
[1756004053455,0.95379,4782.8,4782.7,0.6153]
[1756004053665,1.75499,4782.8,4782.7,0.97060283]
[1756004053865,1.1022,4782.8,4782.7,1.55210283]
[1756004054960,1.3367,4782.8,4782.7,0.95940283]
[1756004055165,1.3367,4782.8,4782.7,0.19620283]
[1756004056166,0.57522,4782.5,4782.4,1.0019]
[1756004056372,20.95802,4782.5,4782.4,0.42521386]
[1756004056761,20.95802,4782.5,4782.4,0.57281386]
[1756004057064,20.5397,4782.5,4782.4,1.55211386]
[1756004057262,1.1022,4782.5,4782.4,1.3559]
[1756004057458,3.2078,4782.7,4782.6,1.3559]
[1756004057459,19.203,4782.7,4782.6,1.3559]
[1756004057672,20.3052,4782.7,4782.6,1.3559]
[1756004058371,1.1022,4782.7,4782.6,1.3559]
[1756004060462,0.3786,4782.7,4782.6,1.3559]
[1756004060660,0.2232,4782.7,4782.6,1.3559]
[1756004062069,0.8717,4782.7,4782.6,1.3559]
[1756004062263,1.1022,4782.7,4782.6,1.3559]
[1756004064179,0.3786,4782.7,4782.6,1.3559]
[1756004064876,1.1022,4782.7,4782.6,1.3559]
[1756004065278,1.3367,4782.7,4782.6,1.3559]
[1756004066379,1.1022,4782.7,4782.6,1.3559]
[1756004068579,0.7148,4782.7,4782.6,1.3559]
[1756004068779,0.9453,4782.7,4782.6,1.3559]
[1756004069179,0.7148,4782.7,4782.6,1.3559]
[1756004069478,0.7899,4783.5,4783.4,1.77414]
[1756004069681,3.7672,4783.7,4783.6,1.77412]
[1756004069881,0.766,4784.1,4784.0,0.95239]
[1756004070175,1.1022,4784.1,4784.0,1.77409]
[1756004071682,3.2078,4784.2,4784.0,1.77409]
[1756004071979,3.2078,4784.2,4784.1,1.3559]
[1756004072175,4.0795,4784.2,4784.1,1.3559]
[1756004072376,4.31,4784.2,4784.1,1.3559]
[1756004072880,1.1022,4784.2,4784.1,1.3559]
[1756004073074,0.8717,4784.5,4784.4,1.77405]
[1756004073478,1.1022,4784.5,4784.4,1.77405]
[1756004078282,1.3263,4784.5,4784.4,1.42005]
[1756004079283,1.3263,4784.5,4784.4,1.74585]
[1756004080788,1.3263,4784.5,4784.0,0.71367]
[1756004080989,0.9227,4782.6,4782.5,0.617]
[1756004081183,20.1947,4782.6,4782.5,0.3846]
[1756004081884,20.1947,4782.6,4782.5,0.617]
[1756004082286,20.1947,4782.6,4782.5,0.3846]
[1756004082589,20.1947,4782.6,4782.5,0.2403]
[1756004082781,0.9227,4782.1,4782.0,3.965]
[1756004082985,20.1897,4782.1,4782.0,3.965]
[1756004083384,20.1897,4782.1,4782.0,4.2053]
[1756004083585,23.3975,4782.1,4782.0,0.9975]
[1756004084287,23.3975,4782.1,4782.0,0.2403]
[1756004084884,23.3975,4782.1,4782.0,0.3846]
[1756004085085,23.3975,4782.1,4782.0,0.617]
[1756004085790,23.3975,4782.1,4782.0,0.2403]
[1756004086091,23.3885,4782.1,4782.0,0.3846]
[1756004086279,23.3885,4782.1,4782.0,0.617]
[1756004087190,23.3885,4782.1,4782.0,0.3846]
[1756004087590,23.3885,4782.1,4782.0,0.9975]
[1756004088388,23.3885,4782.1,4782.0,0.2403]
[1756004089294,23.3845,4782.1,4782.0,1.3233]
[1756004089692,4.1305,4782.1,4782.0,1.3233]
[1756004089894,20.1717,4782.1,4782.0,1.3233]
[1756004093899,0.9227,4782.1,4782.0,1.3233]
[1756004094095,20.1597,4782.1,4782.0,1.3233]
[1756004094297,3.2078,4782.6,4782.0,1.3233]
[1756004094298,0.7326,4782.6,4782.5,1.3233]
[1756004095006,0.9227,4782.6,4782.5,0.2403]
[1756004095610,0.9227,4782.6,4782.5,0.3846]
[1756004095806,0.9227,4782.6,4782.5,1.3233]
[1756004096410,0.9227,4782.6,4782.5,0.9975]
[1756004097608,0.9227,4782.6,4782.5,0.2403]
[1756004100409,20.1717,4782.6,4782.5,0.617]
[1756004100610,0.5861,4782.9,4782.8,1.74159]
[1756004100808,19.244,4783.0,4782.9,0.5661]
[1756004101008,19.244,4783.0,4782.9,1.3233]
[1756004101203,19.9766,4783.0,4782.9,1.3233]
[1756004101409,20.1667,4783.0,4782.9,0.2403]
[1756004101607,0.3762,4782.6,4782.4,0.3258]
[1756004101806,20.1807,4782.5,4782.4,0.56263]
[1756004102007,20.1807,4782.5,4782.4,1.50133]
[1756004102209,20.1807,4782.5,4782.4,1.74163]
[1756004105709,3.62603,4783.5,4783.1,0.41826]
[1756004105904,0.7054,4783.2,4783.1,0.2364]
[1756004106107,0.7426,4783.0,4782.9,0.73128]
[1756004106309,20.5163,4783.0,4782.9,0.95768]
[1756004107213,20.5163,4783.0,4782.9,0.41828]
[1756004107418,20.5163,4783.0,4782.9,0.57408]
[1756004107613,20.5163,4783.0,4782.9,0.80048]
[1756004108116,20.5163,4783.0,4782.9,1.03688]
[1756004108317,20.5163,4783.0,4782.9,0.2364]
[1756004108720,20.5163,4783.0,4782.8,0.41829]
[1756004108920,0.7463,4782.9,4782.8,0.65469]
[1756004109121,1.2703,4782.9,4782.8,0.65469]
[1756004109520,1.2703,4782.9,4782.8,0.41829]
[1756004110220,1.2703,4782.9,4782.8,0.61449576]
[1756004110417,1.68859,4782.9,4782.8,0.19620577]
[1756004110623,1.2703,4782.9,4782.8,0.19620577]
[1756004111622,20.5013,4782.9,4782.8,0.43260577]
[1756004111822,20.5013,4782.9,4782.8,0.19620577]
[1756004112017,20.5013,4782.9,4782.5,0.41832]
[1756004112018,0.7426,4782.6,4782.5,0.41832]
[1756004112220,1.2703,4782.6,4782.5,0.61453884]
[1756004112518,20.5013,4782.6,4782.5,0.85093884]
[1756004113124,20.5013,4782.6,4782.5,1.77832]
[1756004114325,20.2827,4782.6,4782.5,1.77832]
[1756004114726,20.2747,4782.6,4782.5,1.77832]
[1756004115427,20.2747,4782.6,4782.5,1.97453425]
[1756004116322,1.0517,4782.6,4782.5,1.97453425]
[1756004116628,20.2687,4782.6,4782.5,1.97453425]
[1756004117714,0.8614,4782.6,4782.5,1.97453425]
[1756004117916,0.8614,4783.0,4782.9,1.55188]
[1756004118227,20.4823,4783.0,4782.9,1.77828]
[1756004118427,20.4823,4783.0,4782.9,1.43308]
[1756004118727,20.4823,4783.0,4782.9,1.0148]
[1756004119722,20.2637,4783.0,4782.9,1.36]
[1756004120429,20.4823,4783.0,4782.9,1.36]
[1756004120623,20.4823,4783.0,4781.0,2.625654]
[1756004120624,0.524,4782.7,4782.4,0.2264]
[1756004120825,1.2703,4782.4,4782.3,0.41833]
[1756004121025,1.2703,4782.4,4782.3,0.61454253]
[1756004121327,1.2703,4782.4,4782.0,0.2264]
[1756004121328,0.524,4782.0,4781.9,0.65476]
[1756004121633,20.4823,4782.0,4781.9,0.4326289]
[1756004121826,0.524,4781.7,4781.6,3.2078]
[1756004122123,1.2703,4781.7,4781.6,3.2078]
[1756004122327,20.4863,4781.7,4781.6,3.2078]
[1756004122529,20.4863,4781.7,4781.6,3.4442]
[1756004122924,20.4863,4781.7,4781.6,3.8264]
[1756004123125,20.4863,4781.7,4781.6,4.02264941]
[1756004123830,20.4863,4781.7,4781.6,0.97204941]
[1756004124223,20.4863,4781.7,4781.6,1.21104941]
[1756004125332,20.4863,4781.7,4781.6,1.47333745]
[1756004125831,20.4863,4781.7,4781.6,0.69493745]
[1756004126426,20.4863,4781.7,4781.6,0.45853745]
[1756004126928,20.4863,4781.7,4781.6,0.26228804]
[1756004127130,0.4651,4781.1,4781.0,0.41844]
[1756004127324,20.1811,4781.1,4781.0,0.61470909]
[1756004127531,20.1811,4781.1,4781.0,0.85110909]
[1756004127833,20.1811,4781.1,4781.0,0.43266909]
[1756004129028,20.1811,4781.1,4781.0,1.55626909]
[1756004129635,19.9625,4781.1,4781.0,1.55626909]
[1756004130427,0.7833,4781.7,4781.6,0.2364]
[1756004130627,19.9913,4781.7,4781.6,0.2364]
[1756004130827,20.1817,4781.7,4781.6,0.2364]
[1756004131027,0.9737,4781.5,4781.4,0.2364]
[1756004131231,0.9737,4781.2,4781.1,1.2028]
[1756004131428,0.9737,4781.2,4781.1,1.39906699]
[1756004131835,0.9737,4781.2,4781.1,1.05386699]
[1756004132537,0.9737,4781.2,4781.1,0.43266699]
[1756004132941,0.9737,4781.2,4781.1,0.19626699]
[1756004133335,0.9737,4781.2,4781.0,0.41844]
[1756004133535,19.9651,4781.1,4781.0,0.41844]
[1756004133735,20.1837,4781.1,4781.0,0.85110885]
[1756004134142,20.1837,4781.1,4781.0,1.97500885]
[1756004136044,0.9737,4781.1,4781.0,1.97500885]
[1756004136236,20.1837,4781.1,4781.0,1.97500885]
[1756004136841,20.1837,4781.1,4781.0,1.97500898]
[1756004137343,20.1847,4781.1,4781.0,1.97500898]
[1756004139033,20.1847,4781.1,4781.0,0.61470898]
[1756004139439,20.1847,4781.1,4781.0,0.41506898]
[1756004140040,20.1847,4781.1,4781.0,1.02066898]
[1756004140245,20.1847,4781.1,4781.0,1.51336898]
[1756004141245,20.1847,4781.1,4781.0,1.16546898]
[1756004141549,20.1847,4781.1,4781.0,1.02066898]
[1756004141941,20.1847,4781.1,4781.0,0.41506898]
[1756004142148,20.1847,4781.1,4781.0,0.19626898]
[1756004142448,20.1847,4781.1,4781.0,0.41506898]
[1756004142647,20.1847,4781.1,4781.0,0.2188]
[1756004142847,0.9737,4781.1,4781.0,0.2188]
[1756004143046,20.1847,4781.1,4781.0,0.2188]
[1756004143448,0.9737,4781.1,4781.0,0.2188]
[1756004143641,20.1847,4781.1,4781.0,0.2188]
[1756004144051,0.9681,4781.0,4780.9,4.06905]
[1756004144348,0.9681,4781.0,4780.9,1.73555]
[1756004145846,19.9545,4781.5,4781.4,1.73551]
[1756004146050,20.1791,4781.5,4781.4,1.3171]
[1756004146250,20.1791,4781.5,4781.4,0.2188]
[1756004146452,20.1791,4781.5,4781.1,0.5719]
[1756004146648,0.4538,4781.3,4781.2,0.2188]
[1756004146849,0.9681,4781.3,4781.2,1.73553]
[1756004147953,0.9681,4781.3,4781.2,1.93179988]
[1756004148343,0.9681,4781.3,4781.2,1.9317982]
[1756004148949,0.7435,4781.3,4781.2,1.9317982]
[1756004149752,0.7435,4781.3,4781.2,1.5133682]
[1756004149953,0.3943,4781.3,4781.2,1.5133682]
[1756004150258,0.3943,4781.3,4781.2,1.5133619]
[1756004150653,0.3943,4781.3,4781.2,1.3171]
[1756004150852,0.7435,4781.3,4781.2,1.51336329]
[1756004152558,0.9681,4781.3,4781.2,0.64036329]
[1756004152759,0.9681,4781.3,4781.2,0.19626329]
[1756004153457,0.9681,4781.3,4781.2,0.41506329]
[1756004154357,0.9681,4781.3,4781.2,0.19626329]
[1756004155156,0.6588,4780.5,4780.4,4.177]
[1756004155550,0.6588,4780.5,4780.4,3.8082]
[1756004155752,0.6588,4780.5,4780.4,3.4266]
[1756004155950,0.6992,4780.5,4780.4,3.4266]
[1756004156152,0.6588,4780.5,4780.4,3.4266]
[1756004156755,0.245,4780.5,4780.4,4.5249]
[1756004156952,0.4684,4780.5,4780.4,4.5249]
[1756004157157,0.6588,4780.5,4780.4,4.5249]
[1756004158165,0.6588,4780.5,4780.4,4.177]
[1756004158661,19.8678,4780.5,4780.4,4.5249]
[1756004160156,19.8678,4780.5,4780.4,1.3171]
[1756004160655,19.8678,4780.5,4780.4,0.9692]
[1756004160860,19.8678,4780.5,4780.4,1.3171]
[1756004161061,19.8678,4780.5,4780.4,0.9692]
[1756004161263,19.9082,4780.5,4780.4,0.2188]
[1756004162352,19.8678,4780.5,4780.4,0.2188]
[1756004166464,19.21,4780.5,4780.4,1.3449]
[1756004166667,19.21,4780.5,4780.4,1.7634]
[1756004166870,19.3093,4780.5,4780.4,1.7634]
[1756004167067,19.7159,4780.5,4780.4,1.955802]
[1756004167461,19.8748,4780.5,4780.4,1.955802]
[1756004168467,19.8748,4780.5,4780.4,1.601702]
[1756004168667,19.9152,4780.5,4780.4,0.192402]
[1756004168868,0.0647,4779.8,4779.7,0.2338]
[1756004169063,19.9152,4779.8,4779.7,0.42626034]
[1756004169268,19.9152,4779.8,4779.7,0.2338]
[1756004171067,19.8748,4779.8,4779.7,0.3838]
[1756004171371,19.8748,4779.8,4779.7,0.6214]
[1756004172965,19.8748,4779.8,4779.7,0.3838]
[1756004173174,0.6648,4779.8,4779.7,1.3599]
[1756004175172,0.3419,4779.8,4779.7,1.3599]
[1756004175372,19.6864,4780.1,4780.0,0.5344]
[1756004175571,19.877,4780.1,4780.0,1.77844]
[1756004176272,19.877,4780.1,4780.0,1.0058]
[1756004177369,19.877,4780.1,4780.0,1.3599]
[1756004177568,19.4638,4780.1,4780.0,1.3599]
[1756004177773,0.1515,4780.1,4780.0,1.3599]
[1756004177969,0.4755,4780.1,4780.0,1.3599]
[1756004178171,0.6661,4780.1,4780.0,1.3599]
[1756004179170,19.7795,4780.5,4780.4,1.3599]
[1756004179369,19.8201,4780.5,4780.4,0.2338]
[1756004179774,19.9197,4780.5,4780.4,0.2338]
[1756004180379,23.1275,4780.5,4780.4,0.2338]
[1756004181378,23.0869,4780.5,4780.4,0.2338]
[1756004182676,23.0869,4780.5,4780.4,0.4714]
[1756004183776,23.0869,4780.5,4780.4,0.2338]
[1756004183976,23.1275,4780.5,4780.4,0.2338]
[1756004184868,23.6344709,4780.5,4780.4,0.2338]
[1756004185872,23.5938709,4780.5,4780.4,0.2338]
[1756004186079,23.5938709,4780.5,4780.4,0.6214]
[1756004187677,23.5938709,4780.5,4780.4,1.3599]
[1756004188181,23.0869,4780.5,4780.4,1.3599]
[1756004188373,3.8739,4780.5,4780.4,1.3599]
[1756004188572,23.0849,4780.5,4780.4,1.0058]
[1756004188773,23.0849,4780.5,4780.4,0.7801]
[1756004189471,0.6661,4779.7,4779.6,0.2338]
[1756004189676,19.9177,4779.7,4779.6,0.42640417]
[1756004191082,19.8771,4779.7,4779.6,0.66400417]
[1756004191476,19.8771,4779.7,4779.6,0.81400417]
[1756004191677,19.8771,4779.7,4779.6,1.16810417]
[1756004191877,19.8771,4779.7,4779.6,1.55250417]
[1756004192079,0.6661,4779.7,4779.6,1.55250417]
[1756004192283,19.8771,4779.7,4779.6,1.55250417]
[1756004193385,0.6661,4779.7,4779.6,1.55250417]
[1756004193785,19.8761,4779.7,4779.6,1.55250417]
[1756004195588,0.6662,4780.4,4780.3,1.77101]
[1756004196384,0.6662,4780.4,4780.3,1.96341282]
[1756004197989,0.5088,4780.4,4780.3,1.96341282]
[1756004198178,0.2553,4780.4,4780.3,2.26185704]
[1756004198384,0.2553,4780.7,4780.6,1.77099]
[1756004198583,19.3679,4780.7,4780.6,1.77099]
[1756004198783,19.3679,4780.7,4780.6,2.06944991]
[1756004198983,19.4663,4780.7,4780.6,2.06944991]
[1756004199784,3.874,4781.0,4780.9,1.77097]
[1756004200089,19.21,4781.2,4781.1,0.41845]
[1756004200279,0.6662,4781.4,4781.3,1.77093]
[1756004200479,19.8762,4781.4,4781.3,2.35017845]
[1756004201787,0.6662,4781.4,4781.3,2.35017845]
[1756004201991,22.4178,4781.5,4781.3,1.54637845]
[1756004202191,22.4178,4781.5,4781.4,1.93174845]
[1756004203092,22.8629,4781.5,4781.4,1.93174845]
[1756004203499,23.084,4781.5,4781.4,1.93174845]
[1756004205100,19.8752,4781.5,4781.4,1.93174845]
[1756004205395,19.8752,4781.5,4781.4,1.93127745]
[1756004206203,0.6662,4781.5,4781.4,1.93127745]
[1756004206800,3.8154,4782.2,4782.1,0.64206]
[1756004206991,23.52884068,4782.2,4782.1,0.64206]
[1756004207396,23.62724068,4782.2,4782.1,0.64206]
[1756004208401,3.97004068,4782.2,4782.1,1.77086]
[1756004208597,22.6706,4782.2,4782.1,1.77086]
[1756004208797,22.8902,4782.2,4782.1,1.77086]
[1756004209000,3.874,4782.2,4782.1,2.05084482]
[1756004209201,23.08,4782.2,4782.1,2.05084482]
[1756004209402,3.874,4782.2,4782.1,2.34809534]
[1756004209602,3.874,4782.2,4782.1,2.06812813]
[1756004209799,23.079,4782.2,4782.1,2.06812813]
[1756004210000,3.874,4782.2,4782.1,2.06812813]
[1756004210196,23.079,4782.2,4782.1,2.34795947]
[1756004210400,3.3647,4782.2,4782.1,2.34795947]
[1756004210600,19.8712,4782.5,4782.4,1.77084]
[1756004210807,19.8712,4782.5,4782.4,2.34769852]
[1756004211404,19.911,4782.5,4782.4,0.71541547]
[1756004211609,19.911,4782.5,4782.4,0.93911547]
[1756004212300,0.6662,4782.5,4782.4,2.06791547]
[1756004212501,19.8692,4782.5,4782.4,2.34748001]
[1756004215106,0.6662,4782.5,4782.4,2.34748001]
[1756004216300,0.6662,4782.5,4782.4,1.21868001]
[1756004216705,0.706,4782.5,4782.4,1.21868001]
[1756004217103,0.706,4782.5,4782.4,0.57664001]
[1756004217412,0.706,4782.5,4781.7,0.2237]
[1756004217413,0.41837,4782.1,4781.8,0.41838]
[1756004217609,19.201,4782.0,4781.8,0.41838]
[1756004218713,0.41835,4782.3,4781.9,0.41838]
[1756004218916,19.2,4782.2,4782.0,0.41837]
[1756004219413,0.41839,4781.9,4781.4,0.41842]
[1756004219613,3.62619,4781.9,4781.4,0.64212]
[1756004220009,3.62619,4781.9,4781.5,0.41841]
[1756004220214,3.62619,4781.9,4781.5,0.64211]
[1756004220415,3.2078,4781.9,4781.7,0.4184]
[1756004220604,3.2078,4781.9,4781.7,0.6421]
[1756004221506,3.2078,4781.9,4781.7,0.2237]
[1756004221717,0.4184,4781.7,4781.4,0.2237]
[1756004221915,19.2,4781.6,4781.5,0.2237]
[1756004222313,19.2,4781.6,4781.3,0.41843]
[1756004222716,19.2,4781.6,4781.3,0.64213]
[1756004222920,19.61841,4781.6,4781.3,0.64213]
[1756004223125,0.41843,4781.5,4781.3,0.2237]
[1756004223307,19.2,4781.6,4781.4,0.41842]
[1756004223611,19.2,4781.6,4781.5,0.2237]
[1756004223810,0.41841,4781.7,4781.5,0.2237]
[1756004224213,0.0009,4781.5,4781.4,0.2407]
[1756004224413,19.2009,4781.5,4781.4,0.2407]
[1756004224814,19.2009,4781.5,4781.4,0.4802]
[1756004228221,19.70755213,4781.5,4781.4,0.4802]
[1756004228521,19.70965213,4781.5,4781.4,0.7898]
[1756004229222,19.70965213,4781.5,4781.4,1.07364827]
[1756004232020,19.70965213,4781.5,4781.4,0.91554827]
[1756004232621,0.50965213,4781.5,4781.4,0.91554827]
[1756004232820,19.70965213,4781.5,4781.4,1.63554827]
[1756004237617,19.70965213,4781.5,4781.4,1.3517]
[1756004237924,19.70965213,4781.5,4781.4,1.63584721]
[1756004238221,19.203,4781.5,4781.4,1.63584753]
[1756004239425,19.203,4781.5,4781.4,1.28724753]
[1756004240117,19.203,4781.5,4781.4,0.28414753]
[1756004240424,0.003,4781.0,4780.9,0.65797]
[1756004240617,19.203,4781.0,4780.9,0.84922005]
[1756004240922,19.203,4781.0,4780.9,0.2395]
[1756004241422,19.203,4781.0,4780.9,0.43077486]
[1756004242124,19.203,4781.0,4780.4,0.3486]
[1756004242125,0.42151,4780.5,4780.4,0.2395]
[1756004242423,19.62151,4780.5,4780.4,0.2395]
[1756004245523,0.42154,4780.1,4780.0,0.4662]
[1756004245724,19.202,4780.1,4780.0,0.6177]
[1756004245925,19.202,4780.1,4780.0,1.3377]
[1756004246529,3.2078,4780.7,4780.0,0.1485]
[1756004246833,19.202,4780.7,4780.6,1.3377]
[1756004247327,0.0021,4780.4,4780.3,0.2395]
[1756004247529,0.42152,4780.4,4780.3,0.2395]
[1756004248929,0.42522,4780.4,4780.3,0.2395]
[1756004250426,0.42412,4780.4,4780.3,0.6177]
[1756004250627,0.0056,4780.4,4780.3,1.3377]
[1756004250826,19.2056,4780.4,4780.3,1.3377]
[1756004252132,19.2056,4780.4,4780.3,0.9891]
[1756004252336,19.2056,4780.4,4780.3,0.8406]
[1756004252634,19.2067,4780.4,4780.3,0.4662]
[1756004252829,19.2067,4780.4,4780.3,0.2395]
[1756004253431,19.2056,4780.4,4780.3,0.4662]
[1756004253828,19.2056,4780.4,4780.3,0.2395]
[1756004254431,19.2056,4780.4,4780.3,0.4619]
[1756004254731,0.0056,4780.4,4780.3,1.0008]
[1756004254927,3.2078,4780.8,4780.7,1.3269]
[1756004255233,3.2078,4780.8,4780.7,5.51805809]
[1756004257335,3.2078,4780.8,4780.7,5.3269]
[1756004257537,3.2078,4780.8,4780.7,5.51808298]
[1756004258034,3.2078,4781.3,4781.2,0.5389]
[1756004258225,3.2078,4781.3,4781.2,1.3269]
[1756004260130,3.2078,4781.3,4781.2,0.9959]
[1756004260437,3.2078,4781.3,4781.2,0.6105]
[1756004261239,3.2078,4781.3,4781.2,0.2346]
[1756004261427,3.2078,4781.3,4780.7,0.2224]
[1756004261632,0.41847,4780.9,4780.8,0.2346]
[1756004261834,19.61747,4780.9,4780.8,0.2346]
[1756004262037,22.82527,4780.9,4780.8,0.2346]
[1756004262338,22.82527,4780.9,4779.6,3.2078]
[1756004262339,0.41851,4780.5,4780.4,0.2346]
[1756004263742,0.41851,4780.5,4780.4,0.457]
[1756004266042,0.41851,4780.5,4780.4,0.6105]
[1756004267048,22.4068,4780.9,4780.8,1.3269]
[1756004267049,3.2078,4780.9,4780.8,1.3269]
[1756004267249,4.13315375,4780.9,4780.8,0.9959]
[1756004267543,0.7971,4780.6,4780.5,1.0923]
[1756004268142,0.5674,4780.6,4780.5,1.0923]
[1756004268337,0.1489,4780.6,4780.5,1.0923]
[1756004269441,0.1489,4780.6,4780.5,1.3269]
[1756004273247,0.41849,4780.7,4780.5,1.51806596]
[1756004273549,0.41849,4780.7,4780.1,3.2078]
[1756004273550,3.77518,4780.9,4780.8,1.3269]
[1756004273751,4.28225997,4780.9,4780.8,1.3269]
[1756004273946,19.61642,4781.5,4781.3,0.1535]
[1756004274147,19.76532,4781.5,4781.4,1.59065667]
[1756004274352,20.27229968,4781.5,4781.4,1.59065667]
[1756004275153,20.50199968,4781.5,4781.4,1.59065667]
[1756004275353,20.50199968,4781.5,4781.4,1.25965667]
[1756004275760,20.50199968,4781.5,4781.4,1.59065667]
[1756004277359,20.50199968,4781.5,4781.4,1.60167447]
[1756004278060,20.27229968,4781.5,4781.4,1.60167447]
[1756004278362,19.76532,4781.5,4781.4,1.60166266]
[1756004278661,0.56732,4781.5,4781.4,1.60166266]
[1756004278861,19.76332,4781.5,4781.4,1.60166266]
[1756004281763,19.99302,4781.5,4781.4,1.60166266]
[1756004283264,0.79702,4781.5,4781.4,1.60166266]